Workbook

Sheet 1 (2)
A2: 2023年天水市本级一般公共预算支出预算表
A4: 科目代码 | B4: 科目名称 | C4: 合计 | D4: 预算数 | E4: 提前下达转移支付
A5: 201 | B5: 一般公共服务 | C5: =D5+E5 -> 43361 | D5: =D6+D18+D27+D38+D49+D60+D71+D79+D88+D101+D110+D121+D133+D140+D148+D154+D161+D168+D175+D182+D189+D197+D203+D209+D216+D231 -> 43202 | E5: =E6+E18+E27+E38+E49+E60+E71+E79+E88+E101+E110+E121+E133+E140+E148+E154+E161+E168+E175+E182+E189+E197+E203+E209+E216+E231 -> 159
A6: 20101 | B6: 人大事务 | C6: =D6+E6 -> 1382 | D6: =SUM(D7:D17) -> 1382
A7: 2010101 | B7: 行政运行 | C7: 1322 | D7: 1322
A8: 2010102 | B8: 一般行政管理事务 | C8: 60 | D8: 60
A9: 2010103 | B9: 机关服务 | C9: 0
A10: 2010104 | B10: 人大会议 | C10: 0
A11: 2010105 | B11: 人大立法 | C11: 0
A12: 2010106 | B12: 人大监督 | C12: 0
A13: 2010107 | B13: 人大代表履职能力提升 | C13: 0
A14: 2010108 | B14: 代表工作 | C14: 0
A15: 2010109 | B15: 人大信访工作 | C15: 0
A16: 2010150 | B16: 事业运行 | C16: 0
A17: 2010199 | B17: 其他人大事务支出 | C17: 0
A18: 20102 | B18: 政协事务 | C18: 1065 | D18: =SUM(D19:D26) -> 1065
A19: 2010201 | B19: 行政运行 | C19: 1065 | D19: 1065
A20: 2010202 | B20: 一般行政管理事务 | C20: 0
A21: 2010203 | B21: 机关服务 | C21: 0
A22: 2010204 | B22: 政协会议 | C22: 0
A23: 2010205 | B23: 委员视察 | C23: 0
A24: 2010206 | B24: 参政议政 | C24: 0
A25: 2010250 | B25: 事业运行 | C25: 0
A26: 2010299 | B26: 其他政协事务支出 | C26: 0
A27: 20103 | B27: 政府办公厅(室)及相关机构事务 | C27: 6800 | D27: =SUM(D28:D37) -> 6800
A28: 2010301 | B28: 行政运行 | C28: 2754 | D28: 2754
A29: 2010302 | B29: 一般行政管理事务 | C29: 256 | D29: 256
A30: 2010303 | B30: 机关服务 | C30: 0
A31: 2010304 | B31: 专项服务 | C31: 0
A32: 2010305 | B32: 专项业务及机关事务管理 | C32: 902 | D32: 902
A33: 2010306 | B33: 政务公开审批 | C33: 0
A34: 2010308 | B34: 信访事务 | C34: 10 | D34: 10
A35: 2010309 | B35: 参事事务 | C35: 0
A36: 2010350 | B36: 事业运行 | C36: 222 | D36: 222
A37: 2010399 | B37: 其他政府办公厅（室）及相关机构事务支出 | C37: 2656 | D37: 2656
A38: 20104 | B38: 发展与改革事务 | C38: 1818 | D38: =SUM(D39:D48) -> 1818
A39: 2010401 | B39: 行政运行 | C39: 1348 | D39: 1348
A40: 2010402 | B40: 一般行政管理事务 | C40: 129 | D40: 129
A41: 2010403 | B41: 机关服务 | C41: 0
A42: 2010404 | B42: 战略规划与实施 | C42: 0
A43: 2010405 | B43: 日常经济运行调节 | C43: 130 | D43: 130
A44: 2010406 | B44: 社会事业发展规划 | C44: 0
A45: 2010407 | B45: 经济体制改革研究 | C45: 0
A46: 2010408 | B46: 物价管理 | C46: 0
A47: 2010450 | B47: 事业运行 | C47: 211 | D47: 211
A48: 2010499 | B48: 其他发展与改革事务支出 | C48: 0
A49: 20105 | B49: 统计信息事务 | C49: 536 | D49: =SUM(D50:D59) -> 536
A50: 2010501 | B50: 行政运行 | C50: 480 | D50: 480
A51: 2010502 | B51: 一般行政管理事务 | C51: 6 | D51: 6
A52: 2010503 | B52: 机关服务 | C52: 0
A53: 2010504 | B53: 信息事务 | C53: 0
A54: 2010505 | B54: 专项统计业务 | C54: 0
A55: 2010506 | B55: 统计管理 | C55: 0
A56: 2010507 | B56: 专项普查活动 | C56: 0
A57: 2010508 | B57: 统计抽样调查 | C57: 50 | D57: 50
A58: 2010550 | B58: 事业运行 | C58: 0
A59: 2010599 | B59: 其他统计信息事务支出 | C59: 0
A60: 20106 | B60: 财政事务 | C60: 2254 | D60: =SUM(D61:D70) -> 2254
A61: 2010601 | B61: 行政运行 | C61: 1639 | D61: 1639
A62: 2010602 | B62: 一般行政管理事务 | C62: 135 | D62: 135
A63: 2010603 | B63: 机关服务 | C63: 0
A64: 2010604 | B64: 预算改革业务 | C64: 0
A65: 2010605 | B65: 财政国库业务 | C65: 0
A66: 2010606 | B66: 财政监察 | C66: 0
A67: 2010607 | B67: 信息化建设 | C67: 160 | D67: 160
A68: 2010608 | B68: 财政委托业务支出 | C68: 0
A69: 2010650 | B69: 事业运行 | C69: 268 | D69: 268
A70: 2010699 | B70: 其他财政事务支出 | C70: =D70+E70 -> 52 | D70: 52
A71: 20107 | B71: 税收事务 | C71: 700 | D71: =SUM(D72:D78) -> 700
A72: 2010701 | B72: 行政运行 | C72: 0
A73: 2010702 | B73: 一般行政管理事务 | C73: 0
A74: 2010703 | B74: 机关服务 | C74: 0
A75: 2010709 | B75: 信息化建设 | C75: 0
A76: 2010710 | B76: 税收业务 | C76: 0
A77: 2010750 | B77: 事业运行 | C77: 0
A78: 2010799 | B78: 其他税收事务支出 | C78: 700 | D78: 700
A79: 20108 | B79: 审计事务 | C79: 1410 | D79: =SUM(D80:D87) -> 1365 | E79: =SUM(E80:E87) -> 45
A80: 2010801 | B80: 行政运行 | C80: 1004 | D80: 1004
A81: 2010802 | B81: 一般行政管理事务 | C81: 176 | D81: 176
A82: 2010803 | B82: 机关服务 | C82: 0
A83: 2010804 | B83: 审计业务 | C83: 0
A84: 2010805 | B84: 审计管理 | C84: 0
A85: 2010806 | B85: 信息化建设 | C85: 0
A86: 2010850 | B86: 事业运行 | C86: 185 | D86: 185
A87: 2010899 | B87: 其他审计事务支出 | C87: 45 | E87: 45
A88: 20109 | B88: 海关事务 | C88: 50 | D88: =SUM(D89:D100) -> 50
A89: 2010901 | B89: 行政运行 | C89: 0
A90: 2010902 | B90: 一般行政管理事务 | C90: 0
A91: 2010903 | B91: 机关服务 | C91: 0
A92: 2010905 | B92: 缉私办案 | C92: 0
A93: 2010907 | B93: 口岸管理 | C93: 0
A94: 2010908 | B94: 信息化建设 | C94: 0
A95: 2010909 | B95: 海关关务 | C95: 0
A96: 2010910 | B96: 关税征管 | C96: 0
A97: 2010911 | B97: 海关监管 | C97: 0
A98: 2010912 | B98: 检验检疫 | C98: 0
A99: 2010950 | B99: 事业运行 | C99: 0
A100: 2010999 | B100: 其他海关事务支出 | C100: 50 | D100: 50
A101: 20111 | B101: 纪检监察事务 | C101: 5648 | D101: =SUM(D102:D109) -> 5648 | F101: =D101-5648 -> 0
A102: 2011101 | B102: 行政运行 | C102: 4186 | D102: 4186
A103: 2011102 | B103: 一般行政管理事务 | C103: 0
A104: 2011103 | B104: 机关服务 | C104: 0
A105: 2011104 | B105: 大案要案查处 | C105: 0
A106: 2011105 | B106: 派驻派出机构 | C106: 0
A107: 2011106 | B107: 巡视工作 | C107: 0
A108: 2011150 | B108: 事业运行 | C108: 742 | D108: 742
A109: 2011199 | B109: 其他纪检监察事务支出 | C109: 720 | D109: 720 | F109: 720
A110: 20113 | B110: 商贸事务 | C110: 952 | D110: =SUM(D111:D120) -> 952
A111: 2011301 | B111: 行政运行 | C111: 902 | D111: 902
A112: 2011302 | B112: 一般行政管理事务 | C112: 0
A113: 2011303 | B113: 机关服务 | C113: 0
A114: 2011304 | B114: 对外贸易管理 | C114: 0
A115: 2011305 | B115: 国际经济合作 | C115: 0
A116: 2011306 | B116: 外资管理 | C116: 0
A117: 2011307 | B117: 国内贸易管理 | C117: 0
A118: 2011308 | B118: 招商引资 | C118: 50 | D118: 50
A119: 2011350 | B119: 事业运行 | C119: 0
A120: 2011399 | B120: 其他商贸事务支出 | C120: 0
A121: 20114 | B121: 知识产权事务 | C121: 0
A122: 2011401 | B122: 行政运行 | C122: 0
A123: 2011402 | B123: 一般行政管理事务 | C123: 0
A124: 2011403 | B124: 机关服务 | C124: 0
A125: 2011404 | B125: 专利审批 | C125: 0
A126: 2011405 | B126: 知识产权战略和规划 | C126: 0
A127: 2011408 | B127: 国际合作与交流 | C127: 0
A128: 2011409 | B128: 知识产权宏观管理 | C128: 0
A129: 2011410 | B129: 商标管理 | C129: 0
A130: 2011411 | B130: 原产地地理标志管理 | C130: 0
A131: 2011450 | B131: 事业运行 | C131: 0
A132: 2011499 | B132: 其他知识产权事务支出 | C132: 0
A133: 20123 | B133: 民族事务 | C133: 366 | D133: =SUM(D134:D139) -> 366
A134: 2012301 | B134: 行政运行 | C134: =D134+E134 -> 366 | D134: 366
A135: 2012302 | B135: 一般行政管理事务 | C135: 0
A136: 2012303 | B136: 机关服务 | C136: 0
A137: 2012304 | B137: 民族工作专项 | C137: 0
A138: 2012350 | B138: 事业运行 | C138: 0
A139: 2012399 | B139: 其他民族事务支出 | C139: 0
A140: 20125 | B140: 港澳台事务 | C140: 0
A141: 2012501 | B141: 行政运行 | C141: 0
A142: 2012502 | B142: 一般行政管理事务 | C142: 0
A143: 2012503 | B143: 机关服务 | C143: 0
A144: 2012504 | B144: 港澳事务 | C144: 0
A145: 2012505 | B145: 台湾事务 | C145: 0
A146: 2012550 | B146: 事业运行 | C146: 0
A147: 2012599 | B147: 其他港澳台事务支出 | C147: 0
A148: 20126 | B148: 档案事务 | C148: 609 | D148: =SUM(D149:D153) -> 609
A149: 2012601 | B149: 行政运行 | C149: 609 | D149: 609
A150: 2012602 | B150: 一般行政管理事务 | C150: 0
A151: 2012603 | B151: 机关服务 | C151: 0
A152: 2012604 | B152: 档案馆 | C152: 0
A153: 2012699 | B153: 其他档案事务支出 | C153: 0
A154: 20128 | B154: 民主党派及工商联事务 | C154: 648 | D154: =SUM(D155:D160) -> 648
A155: 2012801 | B155: 行政运行 | C155: 648 | D155: 648
A156: 2012802 | B156: 一般行政管理事务 | C156: 0
A157: 2012803 | B157: 机关服务 | C157: 0
A158: 2012804 | B158: 参政议政 | C158: 0
A159: 2012850 | B159: 事业运行 | C159: 0
A160: 2012899 | B160: 其他民主党派及工商联事务支出 | C160: 0
A161: 20129 | B161: 群众团体事务 | C161: 1426 | D161: =SUM(D162:D167) -> 1426
A162: 2012901 | B162: 行政运行 | C162: 684 | D162: 684
A163: 2012902 | B163: 一般行政管理事务 | C163: 0
A164: 2012903 | B164: 机关服务 | C164: 0
A165: 2012906 | B165: 工会事务 | C165: 0
A166: 2012950 | B166: 事业运行 | C166: 181 | D166: 181
A167: 2012999 | B167: 其他群众团体事务支出 | C167: 561 | D167: 561
A168: 20131 | B168: 党委办公厅（室）及相关机构事务 | C168: 2422 | D168: =SUM(D169:D174) -> 2422
A169: 2013101 | B169: 行政运行 | C169: 2134 | D169: 2134
A170: 2013102 | B170: 一般行政管理事务 | C170: 122 | D170: 122
A171: 2013103 | B171: 机关服务 | C171: 0
A172: 2013105 | B172: 专项业务 | C172: 0
A173: 2013150 | B173: 事业运行 | C173: 166 | D173: 166
A174: 2013199 | B174: 其他党委办公厅（室）及相关机构事务支出 | C174: 0
A175: 20132 | B175: 组织事务 | C175: 1195 | D175: =SUM(D176:D181) -> 1195
A176: 2013201 | B176: 行政运行 | C176: 665 | D176: 665
A177: 2013202 | B177: 一般行政管理事务 | C177: 480 | D177: 480
A178: 2013203 | B178: 机关服务 | C178: 0
A179: 2013204 | B179: 公务员事务 | C179: 50 | D179: 50
A180: 2013250 | B180: 事业运行 | C180: 0
A181: 2013299 | B181: 其他组织事务支出 | C181: 0
A182: 20133 | B182: 宣传事务 | C182: 1251 | D182: =SUM(D183:D188) -> 1251
A183: 2013301 | B183: 行政运行 | C183: 1088 | D183: 1088
A184: 2013302 | B184: 一般行政管理事务 | C184: 13 | D184: 13
A185: 2013303 | B185: 机关服务 | C185: 0
A186: 2013304 | B186: 宣传管理 | C186: 0
A187: 2013350 | B187: 事业运行 | C187: 0
A188: 2013399 | B188: 其他宣传事务支出 | C188: 150 | D188: 150
A189: 20134 | B189: 统战事务 | C189: 570 | D189: =SUM(D190:D196) -> 570
A190: 2013401 | B190: 行政运行 | C190: 570 | D190: 570
A191: 2013402 | B191: 一般行政管理事务 | C191: 0
A192: 2013403 | B192: 机关服务 | C192: 0
A193: 2013404 | B193: 宗教事务 | C193: 0
A194: 2013405 | B194: 华侨事务 | C194: 0
A195: 2013450 | B195: 事业运行 | C195: 0
A196: 2013499 | B196: 其他统战事务支出 | C196: 0
A197: 20135 | B197: 对外联络事务 | C197: 0
A198: 2013501 | B198: 行政运行 | C198: =D198+E198 -> 0
A199: 2013502 | B199: 一般行政管理事务 | C199: 0
A200: 2013503 | B200: 机关服务 | C200: 0
A201: 2013550 | B201: 事业运行 | C201: 0
A202: 2013599 | B202: 其他对外联络事务支出 | C202: 0
... 1075 more rows
